[Event "WSTCC-50 2024"]
[Site "Krakow"]
[Date "2024.07.06"]
[Round "5.13"]
[White "Osiecki, Stanislaw"]
[Black "Dahl, Fredrik A"]
[Result "0-1"]
[ECO "B22"]
[WhiteElo "1986"]
[BlackElo "2237"]
[Annotator "RC"]
[PlyCount "108"]
[EventDate "2024.07.01"]
[EventType "team-tourn"]
[EventCountry "POL"]
[SourceTitle "playchess.com"]
[Source "ChessBase"]
[SourceQuality "1"]
[TimeControl "40/5400+30:1800+30"]

1. e4 {[%emt 0:00:11]} c5 {[%emt 0:00:03]} 2. c3 {[%emt 0:00:09]} Nf6 {[%emt 0:00:11]} 3. e5 {[%emt 0:00:13]} Nd5 {[%emt 0:00:08]} 4. d4 {[%emt 0:00:09]} cxd4 {[%emt 0:00:18]} 5. Nf3 {[%emt 0:00:04]} e6 {[%emt 0:00:44]} 6. cxd4 {[%emt 0:00:13]} d6 {[%emt 0:00:19]} 7. a3 {[%emt 0:00:10]} Bd7 {[%emt 0:00:37]} 8. Bd3 {[%emt 0:00:12]} Bc6 {[%emt 0:00:27]} 9. O-O {[%emt 0:00:27]} Nd7 {[%emt 0:00:28]} 10. Re1 {[%emt 0:04:08]} dxe5 {[%emt 0:04:19]} 11. dxe5 {[%emt 0:03:18]} g6 {[%emt 0:00:22]} 12. Bd2 {[%emt 0:04:14]} Bg7 {[%emt 0:00:53]} 13. Nc3 {[%emt 0:01:33]} O-O {[%emt 0:02:00]} 14. Nxd5 {[%emt 0:03:47]} Bxd5 {[%emt 0:00:20]} 15. Bb4 {[%emt 0:00:59]} Re8 {[%emt 0:00:55]} 16. Bd6 {[%emt 0:00:15]} Rc8 {[%emt 0:06:42]} 17. Be4 {[%emt 0:03:03]} Nb6 {[%emt 0:02:45]} 18. Bxd5 {[%emt 0:03:25]} Nxd5 {[%emt 0:00:19]} 19. Qd2 {[%emt 0:01:56]} Qd7 {[%emt 0:10:06]} 20. Rac1 {[%emt 0:02:18]} Nb6 {[%emt 0:07:26]} 21. Rxc8 {[%emt 0:03:49]} Rxc8 {[%emt 0:02:24]} 22. Rd1 {[%emt 0:14:54]} Qc6 {[%emt 0:04:17]} 23. h3 {[%emt 0:02:44]} Nd5 {[%emt 0:04:54]} 24. Nd4 {[%emt 0:01:43]} Qc4 {[%emt 0:01:00]} 25. Kh1 {[%emt 0:06:53]} h5 {[%emt 0:01:15]} 26. b3 {[%emt 0:03:02]} Qc3 {[%emt 0:09:29]} 27. Qxc3 {[%emt 0:00:22]} Rxc3 {[%emt 0:00:06]} 28. a4 {[%emt 0:08:39]} a6 {[%emt 0:02:20]} 29. Rd2 {[%emt 0:07:55]} Nf4 {[%emt 0:23:47]} 30. Ne2 {[%emt 0:03:16]} Nxe2 {[%emt 0:03:00]} 31. Rxe2 {[%emt 0:00:02]} Bf8 {[%emt 0:02:21]} 32. Bxf8 {[%emt 0:03:47]} Kxf8 {[%emt 0:00:04]} 33. Rb2 {[%emt 0:03:49]} Ke7 {[%emt 0:01:03]} 34. b4 {[%emt 0:00:44]} Rc4 {[%emt 0:01:15]} 35. g3 {[%emt 0:01:37]} g5 {[%emt 0:01:59]} 36. f3 {[%emt 0:01:25]} Kd7 {[%emt 0:00:29]} 37. Kg2 {[%emt 0:00:56]} Kc6 {[%emt 0:01:35]} 38. Kf2 {[%emt 0:06:49]} b5 {[%emt 0:05:33]} 39. axb5+ {[%emt 0:00:31]} Kxb5 {[%emt 0:02:07]} 40. Rd2 {[%emt 0:00:58]} Kxb4 {[%emt 0:00:56]} 41. Rd7 {[%emt 0:30:09]} a5 {[%emt 0:03:34]} 42. Rxf7 {[%emt 0:00:00]} a4 {[%emt 0:02:49]} 43. Rb7+ {[%emt 0:00:00]} Kc3 {[%emt 0:01:52]} 44. f4 {[%emt 0:00:00]} gxf4 {[%emt 0:01:16]} 45. g4 {[%emt 0:00:00]} hxg4 {[%emt 0:00:15]} 46. hxg4 {[%emt 0:00:00]} a3 {[%emt 0:02:44]} 47. Kf3 {[%emt 0:00:00]} a2 {[%emt 0:01:01]} 48. Ra7 {[%emt 0:00:00]} Kb3 {[%emt 0:00:41]} 49. Rxa2 {[%emt 0:00:00]} Kxa2 {[%emt 0:00:04]} 50. g5 {[%emt 0:00:00]} Kb3 {[%emt 0:00:29]} 51. g6 {[%emt 0:00:00]} Kc3 {[%emt 0:00:26]} 52. g7 {[%emt 0:00:00]} Rc8 {[%emt 0:00:09]} 53. Kxf4 {[%emt 0:00:00]} Kd4 {[%emt 0:00:56]} 54. Kg5 {[%emt 0:00:00]} Kxe5 {[%emt 0:00:30]} 0-1

[Event "WSTCC-50 2024"]
[Site "Krakow"]
[Date "2024.07.06"]
[Round "5.13"]
[White "Kirby, Peter J."]
[Black "Hulme, William"]
[Result "1/2-1/2"]
[ECO "E06"]
[WhiteElo "1984"]
[BlackElo "1941"]
[Annotator "NA RC"]
[PlyCount "40"]
[EventDate "2024.07.01"]
[EventType "team-tourn"]
[EventCountry "POL"]
[SourceTitle "playchess.com"]
[Source "ChessBase"]
[SourceQuality "1"]
[TimeControl "40/5400+30:1800+30"]

1. Nf3 {[%emt 0:00:03]} d5 {[%emt 0:00:07]} 2. d4 {[%emt 0:00:15]} Nf6 {[%emt 0:00:06]} 3. c4 {[%emt 0:00:07]} e6 {[%emt 0:00:04]} 4. g3 {[%emt 0:00:14]} Be7 {[%emt 0:00:10]} 5. Bg2 {[%emt 0:00:10]} O-O {[%emt 0:00:10]} 6. O-O {[%emt 0:00:14]} dxc4 {[%emt 0:00:09]} 7. Qa4 {[%emt 0:00:17]} c6 {[%emt 0:02:41]} 8. Qxc4 {[%emt 0:00:15]} b5 {[%emt 0:00:11]} 9. Qc2 {[%emt 0:01:15]} Bb7 {[%emt 0:00:15]} 10. Nbd2 {[%emt 0:04:43]} Qb6 {[%emt 0:08:18]} 11. a4 {[%emt 0:04:05]} a6 {[%emt 0:03:54]} 12. Nb3 {[%emt 0:05:10]} Nbd7 {[%emt 0:01:08]} 13. Bd2 {[%emt 0:07:55]} Rac8 {[%emt 0:03:20]} 14. Ba5 {[%emt 0:05:13]} Qa7 {[%emt 0:00:10]} 15. Qd3 {[%emt 0:04:31]} c5 {[%emt 0:06:58]} 16. dxc5 {[%emt 0:03:30]} Nxc5 {[%emt 0:02:58]} 17. Nxc5 {[%emt 0:03:31]} Qxc5 {[%emt 0:02:43]} 18. axb5 {[%emt 0:01:25]} Qxb5 {[%emt 0:04:03]} 19. Qxb5 {[%emt 0:01:21]} axb5 {[%emt 0:00:05]} 20. Rfc1 {[%emt 0:00:22]} Bd5 {[%emt 0:03:07]} 1/2-1/2

[Event "WSTCC-50 2024"]
[Site "Krakow"]
[Date "2024.07.06"]
[Round "5.14"]
[White "Motuz, Karol"]
[Black "Kaspi, Alexander"]
[Result "1/2-1/2"]
[ECO "E14"]
[WhiteElo "2293"]
[BlackElo "2365"]
[Annotator "TA"]
[PlyCount "58"]
[EventDate "2024.07.01"]
[EventType "team-tourn"]
[EventCountry "POL"]
[SourceTitle "playchess.com"]
[Source "ChessBase"]
[SourceQuality "1"]
[TimeControl "40/5400+30:1800+30"]

{[%evp 19,58,-6,-9,-10,0,0,-8,0,-4,-17,-22,-36,-19,-12,-20,-24,-8,-81,-71,-91,-76,-96,-70,-84,-53,-42,-30,-57,161,0,0,-64,-71,-85,-86,-88,-77,-96,0,-80,0]} 1. d4 {[%emt 0:00:08]} Nf6 {[%emt 0:00:12]} 2. c4 {[%emt 0:00:24]} e6 {[%emt 0:00:08]} 3. Nf3 {[%emt 0:00:52]} b6 {[%emt 0:00:18]} 4. e3 {[%emt 0:01:07]} Bb7 {[%emt 0:00:27]} 5. Bd3 {[%emt 0:00:33]} d5 {[%emt 0:04:39]} 6. cxd5 {[%emt 0:01:03]} exd5 {[%emt 0:00:09]} 7. O-O {[%emt 0:00:27]} Bd6 {[%emt 0:00:38]} 8. Nc3 {[%emt 0:02:17]} O-O {[%emt 0:01:21]} 9. b3 {[%emt 0:02:00]} a6 {[%emt 0:00:29]} 10. Bb2 {[%emt 0:03:20]} Nbd7 {[%emt 0:00:30]} 11. Qc2 {[%emt 0:04:48]} Qe7 {[%emt 0:00:31]} 12. Rac1 {[%emt 0:02:08]} Ne4 {[%emt 0:06:59]} 13. Ne2 {[%emt 0:03:07][%cal Of3e5] The position is equal.} Rac8 {[%emt 0:01:36]} 14. Rfe1 {[%emt 0:11:22]} f5 {[%emt 0:01:54]} 15. Ng3 {[%emt 0:16:28]} Rf7 {[%emt 0:05:05]} 16. Qe2 {[%emt 0:02:36]} Ra8 {[%emt 0:02:42]} 17. Qc2 {[%emt 0:01:48]} g5 {[%emt 0:04:59]} 18. Nf1 {[%emt 0:05:32]} (18. Qe2 $11) 18... g4 $17 {[%emt 0:17:01]} 19. N3d2 {[%emt 0:09:52]} Qh4 {[%emt 0:05:07]} 20. Ng3 {[%emt 0:04:03]} h5 {[%emt 0:15:25]} 21. f4 {[%emt 0:04:46][%cal Rd2e4]} Nxg3 {[%emt 0:14:05]} 22. hxg3 {[%emt 0:00:27]} Qf6 {[%emt 0:00:05]} 23. Kf2 {[%emt 0:02:40]} Kh7 $2 {[%emt 0:00:27] [#]} (23... Re8 $15 {keeps the upper hand.}) 24. Rh1 $2 {[%emt 0:10:38]} (24. e4 $1 $18 {[%cal Re4e5] e5 would now be deadly.} dxe4 25. Nxe4 fxe4 26. Bxe4+ Bxe4 27. Qxe4+ Kg7 28. Qxa8) 24... Kg6 $11 {[%emt 0:00:17]} 25. Rce1 {[%emt 0:01:07]} ({White should try} 25. e4 $11 dxe4 26. Nxe4 Bxe4 27. Bxe4) 25... Re8 $15 {[%emt 0:01:48]} 26. Qc1 {[%emt 0:00:40]} Qe7 {[%emt 0:01:21]} 27. Qc2 {[%emt 0:01:12][%cal Od2f3]} Qe6 {[%emt 0:00:16]} 28. Qc1 {[%emt 0:00:48]} Qe7 {[%emt 0:01:43]} 29. Qc2 {[%emt 0:00:01][%cal Od2f3] [#]} Qe6 {[%emt 0:04:00] Weighted Error Value: White=0.21 (precise) /Black=0.27 (precise) .  Loses game:     	---       	Black=1      Missed win:     	White=1     	---        Mistake:       	White=2     	Black=1      Inaccurate:     	---       	Black=1      OK:         	White=4     	Black=8      Best:        	White=2     	---} (29... a5 $1 $17) 1/2-1/2

[Event "WSTCC-50 2024"]
[Site "Krakow"]
[Date "2024.07.06"]
[Round "5.14"]
[White "Kirkebo, Carl Peter"]
[Black "Sielicki, Tomasz"]
[Result "1-0"]
[ECO "A21"]
[WhiteElo "2160"]
[BlackElo "2017"]
[Annotator "RC"]
[PlyCount "95"]
[EventDate "2024.07.01"]
[EventType "team-tourn"]
[EventCountry "POL"]
[SourceTitle "playchess.com"]
[Source "ChessBase"]
[SourceQuality "1"]
[TimeControl "40/5400+30:1800+30"]

1. c4 {[%emt 0:00:07]} e5 {[%emt 0:00:20]} 2. Nc3 {[%emt 0:00:15]} d6 {[%emt 0:00:46]} 3. d4 {[%emt 0:00:58]} Be7 {[%emt 0:05:17]} 4. Nf3 Nc6 5. d5 {[%emt 0:12:11]} Nb8 {[%emt 0:10:35]} 6. e4 {[%emt 0:01:59]} Na6 {[%emt 0:10:08]} 7. b4 {[%emt 0:07:55]} Bd7 {[%emt 0:07:54]} 8. Rb1 {[%emt 0:02:16]} Qc8 {[%emt 0:06:23]} 9. c5 {[%emt 0:15:06]} dxc5 {[%emt 0:00:42]} 10. b5 {[%emt 0:00:29]} Nb8 {[%emt 0:02:46]} 11. Nxe5 {[%emt 0:06:33]} Bf6 {[%emt 0:02:02]} 12. f4 {[%emt 0:14:18]} a6 {[%emt 0:09:49]} 13. bxa6 {[%emt 0:06:24]} Nxa6 {[%emt 0:00:36]} 14. Qb3 {[%emt 0:01:05]} Bxe5 {[%emt 0:01:36]} 15. fxe5 {[%emt 0:00:11]} b6 {[%emt 0:02:02]} 16. Bg5 {[%emt 0:02:16]} h6 17. Bh4 {[%emt 0:00:47]} Ne7 {[%emt 0:04:40]} 18. Bxe7 {[%emt 0:08:44]} Kxe7 {[%emt 0:00:04]} 19. d6+ {[%emt 0:00:11]} Kf8 {[%emt 0:01:09]} 20. Bc4 {[%emt 0:01:14]} Be6 {[%emt 0:07:04]} 21. O-O {[%emt 0:01:05]} Kg8 {[%emt 0:00:40]} 22. Nd5 {[%emt 0:03:17]} Kh7 {[%emt 0:00:26]} 23. Ne7 {[%emt 0:01:50]} Qd7 {[%emt 0:03:13]} 24. Rxf7 {[%emt 0:04:50]} Bxf7 {[%emt 0:02:21]} 25. Bxf7 {[%emt 0:00:06]} Rhf8 {[%emt 0:00:35]} 26. Bg6+ {[%emt 0:01:12]} Kh8 {[%emt 0:00:05]} 27. Bf5 {[%emt 0:00:39]} Rxf5 {[%emt 0:00:05]} 28. exf5 {[%emt 0:02:13]} cxd6 {[%emt 0:00:35]} 29. Qf7 {[%emt 0:00:24]} Qe8 {[%emt 0:07:25]} 30. Ng6+ {[%emt 0:00:59]} Kh7 {[%emt 0:00:07]} 31. Qxe8 {[%emt 0:00:34]} Rxe8 {[%emt 0:00:05]} 32. Rxb6 {[%emt 0:00:35]} Nb4 {[%emt 0:01:00]} 33. Rxd6 {[%emt 0:00:53]} Nxa2 {[%emt 0:01:51]} 34. Rc6 {[%emt 0:01:22]} Nc3 {[%emt 0:04:49]} 35. Rxc5 {[%emt 0:00:37]} Ne2+ {[%emt 0:00:14]} 36. Kf2 {[%emt 0:01:05]} Nd4 {[%emt 0:00:10]} 37. g4 {[%emt 0:00:50]} h5 {[%emt 0:00:27]} 38. Ke3 {[%emt 0:01:42]} Ne6 {[%emt 0:00:47]} 39. Rc6 {[%emt 0:01:45]} Nf8 {[%emt 0:02:12]} 40. gxh5 {[%emt 0:00:50]} Nd7 {[%emt 0:01:37]} 41. Kf4 {[%emt 0:30:39]} Nb8 {[%emt 0:30:12]} 42. Rd6 {[%emt 0:00:28]} Rc8 {[%emt 0:00:43]} 43. e6 {[%emt 0:00:00]} Nc6 {[%emt 0:00:00]} 44. Kg5 {[%emt 0:00:00]} Nd8 {[%emt 0:00:00]} 45. Rd7 {[%emt 0:00:00]} Nxe6+ {[%emt 0:00:00]} 46. fxe6 {[%emt 0:00:00]} Rc5+ {[%emt 0:00:00]} 47. Kg4 {[%emt 0:00:00]} Rc4+ {[%emt 0:00:00]} 48. Nf4 {[%emt 0:00:00]} 1-0

[Event "WSTCC-50 2024"]
[Site "Krakow"]
[Date "2024.07.06"]
[Round "5.14"]
[White "Dawson, Alastair"]
[Black "Rowe, Peter"]
[Result "1/2-1/2"]
[ECO "A05"]
[WhiteElo "1850"]
[BlackElo "1960"]
[Annotator "NA RC"]
[PlyCount "39"]
[EventDate "2024.07.01"]
[EventType "team-tourn"]
[EventCountry "POL"]
[SourceTitle "playchess.com"]
[Source "ChessBase"]
[SourceQuality "1"]
[TimeControl "40/5400+30:1800+30"]

1. Nf3 {[%emt 0:00:06]} Nf6 {[%emt 0:00:32]} 2. c4 {[%emt 0:00:14]} d6 {[%emt 0:00:49]} 3. Nc3 {[%emt 0:00:18]} e5 {[%emt 0:00:29]} 4. e4 {[%emt 0:00:13]} Be7 {[%emt 0:01:02]} 5. h3 {[%emt 0:01:38]} Nbd7 {[%emt 0:02:34]} 6. d4 {[%emt 0:00:34]} exd4 {[%emt 0:01:11]} 7. Nxd4 {[%emt 0:00:48]} Nc5 {[%emt 0:00:36]} 8. Qc2 {[%emt 0:01:02]} a5 {[%emt 0:00:35]} 9. Be2 {[%emt 0:01:31]} O-O {[%emt 0:00:41]} 10. O-O {[%emt 0:00:55]} Re8 {[%emt 0:01:27]} 11. f4 {[%emt 0:03:24]} Bf8 {[%emt 0:00:58]} 12. Bf3 {[%emt 0:00:28]} Nfd7 {[%emt 0:02:59]} 13. Be3 {[%emt 0:08:07]} Nb6 {[%emt 0:05:15]} 14. b3 {[%emt 0:05:02]} c6 {[%emt 0:08:50]} 15. Rfe1 {[%emt 0:04:07]} Qc7 {[%emt 0:03:11]} 16. Rad1 {[%emt 0:07:39]} g6 {[%emt 0:04:18]} 17. Bf2 {[%emt 0:15:38]} Ne6 {[%emt 0:04:47]} 18. Nxe6 {[%emt 0:03:31]} Bxe6 {[%emt 0:01:08]} 19. f5 {[%emt 0:04:38]} Bc8 {[%emt 0:01:04]} 20. g4 1/2-1/2

[Event "WSTCC-50 2024"]
[Site "Krakow"]
[Date "2024.07.06"]
[Round "5.15"]
[White "Fleish, Felix"]
[Black "Briestensky, Rastislav"]
[Result "1-0"]
[ECO "B09"]
[WhiteElo "2161"]
[BlackElo "2274"]
[Annotator "TA"]
[PlyCount "101"]
[EventDate "2024.07.01"]
[EventType "team-tourn"]
[EventCountry "POL"]
[SourceTitle "playchess.com"]
[Source "ChessBase"]
[SourceQuality "1"]
[TimeControl "40/5400+30:1800+30"]

{[%evp 10,101,76,37,55,35,44,33,36,42,59,41,33,39,54,58,89,54,71,64,53,35,96,87,110,39,42,18,25,31,26,19,47,38,52,59,54,52,45,25,27,26,31,29,38,23,81,70,138,138,163,143,182,173,200,188,184,194,195,183,205,205,204,188,233,241,228,225,246,248,333,275,276,267,420,407,473,459,444,429,1165,1165,1912,1666,5327,3151,29972,29973,29973,29973,29961,6482,6291,2174]} 1. e4 {[%emt 0:00:02][%cal Be2e4,Be4e5][%mdl 32]} d6 {[%emt 0:00:03]} 2. d4 {[%emt 0:00:07]} Nf6 {[%emt 0:00:04]} 3. Nc3 {[%emt 0:00:09]} g6 {[%emt 0:00:03]} 4. f4 {[%emt 0:00:26]} c6 {[%emt 0:00:06]} 5. Nf3 {[%emt 0:03:48]} Bg7 {[%emt 0:00:06]} 6. e5 {[%emt 0:11:21]} Nd5 {[%emt 0:01:16]} 7. Nxd5 {[%emt 0:02:04]} cxd5 {[%emt 0:00:05]} 8. Bd3 {[%emt 0:00:19]} Nc6 {[%emt 0:01:46] White is slightly better.} 9. c3 {[%emt 0:00:39]} O-O {[%emt 0:06:21]} 10. O-O {[%emt 0:02:05]} dxe5 {[%emt 0:02:56]} 11. Nxe5 {[%emt 0:04:28]} Nxe5 {[%emt 0:06:39]} 12. fxe5 {[%emt 0:00:08]} f5 {[%emt 0:01:04]} 13. exf6 {[%emt 0:17:13]} exf6 {[%emt 0:00:24]} 14. Bf4 {[%emt 0:02:30]} Be6 {[%emt 0:00:26]} 15. Qb3 {[%emt 0:02:36]} Rf7 {[%emt 0:03:17]} (15... Qd7 $1 $14) 16. Rae1 $16 {[%emt 0:01:08]} Re7 {[%emt 0:06:58]} 17. Be2 {[%emt 0:09:11] White is much more active.} (17. Qb4 $1 $16) 17... Bf7 $14 {[%emt 0:02:21]} 18. Bf3 {[%emt 0:00:10]} Rxe1 {[%emt 0:00:30]} 19. Rxe1 {[%emt 0:00:02]} Qd7 {[%emt 0:00:15]} 20. h3 {[%emt 0:03:23]} Bf8 {[%emt 0:04:17]} 21. a4 {[%emt 0:08:54]} h5 {[%emt 0:13:02]} 22. Qb5 {[%emt 0:02:17]} Rd8 {[%emt 0:02:27]} 23. Qxd7 {[%emt 0:00:26]} Rxd7 {[%emt 0:00:14]} 24. h4 {[%emt 0:01:24]} Be7 {[%emt 0:01:29]} 25. g3 {[%emt 0:02:04]} a6 {[%emt 0:01:27]} 26. Kf2 {[%emt 0:01:38]} Kf8 {[%emt 0:06:26]} 27. Bb8 {[%emt 0:04:11]} Be8 {[%emt 0:08:37]} (27... b5 $11) 28. Ba7 $16 {[%emt 0:02:11] Black is on the road to losing.} Kf7 {[%emt 0:00:45]} (28... Bf7 $14) 29. Bb6 {[%emt 0:00:34]} Kf8 {[%emt 0:02:27]} 30. a5 {[%emt 0:00:41]} Bf7 {[%emt 0:00:59]} 31. b4 {[%emt 0:01:09]} Bd6 {[%emt 0:00:32]} 32. Bc5 {[%emt 0:00:26]} Rd8 {[%emt 0:02:32]} 33. Re3 {[%emt 0:05:11]} Rd7 {[%emt 0:06:47]} 34. Ke1 {[%emt 0:01:03]} Rd8 {[%emt 0:06:12]} 35. Kd2 {[%emt 0:00:52]} Rd7 {[%emt 0:01:16]} 36. Kc2 {[%emt 0:00:12]} g5 {[%emt 0:00:28]} 37. hxg5 {[%emt 0:05:51]} fxg5 {[%emt 0:00:17]} 38. Re5 $1 {[%emt 0:00:14]} g4 {[%emt 0:00:39]} 39. Bg2 {[%emt 0:00:04]} (39. Bxd5 Bxc5 40. Bxf7 Bxd4 41. cxd4 Rxf7 $14) 39... Kg7 {[%emt 0:02:20]} 40. Bxd6 {[%emt 0:01:00]} Rxd6 $18 {[%emt 0:00:05][%mdl 4096] Endgame. [#] KRB-KRB} 41. Re7 $1 {[%emt 0:30:16]} Kf8 {[%emt 0:35:52]} (41... Re6 {was worth a try.} 42. Rxe6 (42. Rxb7 $2 Re2+ 43. Kb3 Rxg2 $19) 42... Bxe6) 42. Rxb7 {[%emt 0:07:57]} Rf6 {[%emt 0:00:07]} 43. Kb3 {[%emt 0:01:03]} h4 {[%emt 0:02:39]} 44. gxh4 {[%emt 0:00:00]} g3 {[%emt 0:00:00]} (44... Re6 $142 45. b5 (45. Bxd5 g3 $18) 45... axb5 46. Bxd5 g3) 45. b5 {[%emt 0:00:00]} Be8 {[%emt 0:00:00]} 46. b6 {[%emt 0:00:00][%cal Ob7b8] Black must now prevent Rb8!} Rf2 {[%emt 0:00:00] [#]} 47. Rb8 $1 {[%emt 0:00:00]} Rxg2 {[%emt 0:00:00] [#]} (47... Re2 48. b7) 48. Rxe8+ $1 {[%emt 0:00:00][%mdl 512]} Kxe8 {[%emt 0:00:00]} 49. b7 {[%emt 0:00:00]} Rg1 {[%emt 0:00:00]} 50. b8=Q+ {[%emt 0:00:00]} (50. b8=B {gets mated.} Rb1+ 51. Kc2 Rxb8 52. c4 g2 (52... dxc4 {leads to mate.} 53. Kd2 g2 54. Ke3 g1=Q+ 55. Kf4 Qxd4+ 56. Kf3 Rb3+ 57. Ke2 Qd3+ 58. Ke1 Qc2 59. h5 Rb1#) 53. cxd5 g1=Q (53... g1=R 54. h5 Rg3 55. h6 Kd7 56. d6 Kxd6 57. h7 Kd5 58. Kd2 Rb2+ 59. Kc1 Rh2 60. Kd1 Rg1#) 54. Kd3 Qg6+ 55. Ke3 Rb3+ 56. Kf4 Qh5 57. Ke4 Rf3 58. d6 Qf5#) 50... Kd7 {[%emt 0:00:00]} 51. Qb7+ {[%emt 0:00:00] Weighted Error Value: White=0.08 (flawless) /Black=0.33.  Mistake:       	White=1     	Black=5      Inaccurate:     	White=1     	Black=4      OK:         	White=17    	Black=16     Best:        	White=3     	---        Strong:       	White=2     	---} 1-0

[Event "WSTCC-50 2024"]
[Site "Krakow"]
[Date "2024.07.06"]
[Round "5.15"]
[White "Flis, Pawel"]
[Black "Berg, Anders Hoyer"]
[Result "1/2-1/2"]
[ECO "C24"]
[WhiteElo "1980"]
[BlackElo "2079"]
[Annotator "NA RC"]
[PlyCount "36"]
[EventDate "2024.07.01"]
[EventType "team-tourn"]
[EventCountry "POL"]
[SourceTitle "playchess.com"]
[Source "ChessBase"]
[SourceQuality "1"]
[TimeControl "40/5400+30:1800+30"]

1. e4 {[%emt 0:00:02]} e5 {[%emt 0:00:06]} 2. Bc4 {[%emt 0:00:04]} Nf6 {[%emt 0:00:55]} 3. d3 {[%emt 0:00:04]} c6 {[%emt 0:02:04]} 4. Nf3 {[%emt 0:00:12]} d5 {[%emt 0:02:06]} 5. exd5 {[%emt 0:06:07]} cxd5 {[%emt 0:00:56]} 6. Bb3 {[%emt 0:00:28]} Bb4+ {[%emt 0:09:09]} 7. Bd2 {[%emt 0:04:18]} Bxd2+ {[%emt 0:01:12]} 8. Nbxd2 {[%emt 0:01:32]} Nc6 {[%emt 0:00:52]} 9. O-O {[%emt 0:01:11]} O-O {[%emt 0:08:18]} 10. h3 {[%emt 0:02:48]} Bf5 {[%emt 0:03:36]} 11. Re1 {[%emt 0:01:09]} Re8 {[%emt 0:02:11]} 12. Nf1 {[%emt 0:04:21]} h6 {[%emt 0:03:02]} 13. Ng3 {[%emt 0:03:44]} Bh7 {[%emt 0:00:56]} 14. c3 {[%emt 0:08:21]} Qb6 {[%emt 0:05:46]} 15. d4 {[%emt 0:12:14]} e4 {[%emt 0:08:07]} 16. Nh2 {[%emt 0:04:02]} Na5 {[%emt 0:06:42]} 17. Nhf1 {[%emt 0:03:07]} Rad8 {[%emt 0:04:25]} 18. Ne3 {[%emt 0:01:59]} Kh8 {[%emt 0:08:51]} 1/2-1/2

[Event "WSTCC-50 2024"]
[Site "Krakow"]
[Date "2024.07.06"]
[Round "5.15"]
[White "Brookfield, Toby"]
[Black "Aird, Ian"]
[Result "0-1"]
[ECO "C31"]
[WhiteElo "1894"]
[BlackElo "1840"]
[Annotator "NA RC"]
[PlyCount "56"]
[EventDate "2024.07.01"]
[EventType "team-tourn"]
[EventCountry "POL"]
[SourceTitle "playchess.com"]
[Source "ChessBase"]
[SourceQuality "1"]
[TimeControl "40/5400+30:1800+30"]

1. e4 {[%emt 0:00:04]} e5 {[%emt 0:00:07]} 2. f4 {[%emt 0:00:05]} d5 {[%emt 0:00:07]} 3. exd5 {[%emt 0:00:10]} exf4 {[%emt 0:00:04]} 4. Bc4 {[%emt 0:00:18]} Nf6 {[%emt 0:00:36]} 5. Nc3 {[%emt 0:00:07]} Bd6 {[%emt 0:04:23]} 6. Nf3 {[%emt 0:05:13]} O-O {[%emt 0:00:36]} 7. O-O {[%emt 0:00:13]} Bg4 {[%emt 0:02:11]} 8. d4 {[%emt 0:00:33]} Nbd7 {[%emt 0:01:26]} 9. Qd3 {[%emt 0:07:24]} a6 {[%emt 0:08:54]} 10. a4 {[%emt 0:05:52]} Re8 {[%emt 0:02:45]} 11. a5 {[%emt 0:04:26]} Qe7 {[%emt 0:08:31]} 12. Bd2 {[%emt 0:13:35]} h6 {[%emt 0:06:44]} 13. Rae1 {[%emt 0:04:38]} Qf8 {[%emt 0:00:33]} 14. Ne2 {[%emt 0:06:50]} g5 {[%emt 0:04:44]} 15. c3 {[%emt 0:04:09]} Bh5 {[%emt 0:01:40]} 16. Bc1 {[%emt 0:08:00]} Bg6 {[%emt 0:02:03]} 17. Qd1 {[%emt 0:00:19]} Ng4 {[%emt 0:08:09]} 18. Bd3 {[%emt 0:06:52]} Ne3 {[%emt 0:02:23]} 19. Bxe3 {[%emt 0:00:24]} Rxe3 {[%emt 0:00:12]} 20. Bxg6 {[%emt 0:01:34]} fxg6 {[%emt 0:00:11]} 21. Qb3 {[%emt 0:03:43]} Rae8 {[%emt 0:03:06]} 22. Qc2 {[%emt 0:01:25]} Kg7 {[%emt 0:01:13]} 23. h4 {[%emt 0:02:48]} Qe7 {[%emt 0:01:03]} 24. h5 {[%emt 0:10:47]} gxh5 {[%emt 0:00:52]} 25. Nc1 {[%emt 0:02:01]} g4 {[%emt 0:03:27]} 26. Ne5 {[%emt 0:00:46]} Nxe5 {[%emt 0:02:11]} 27. Rxe3 {[%emt 0:01:10]} fxe3 {[%emt 0:00:52]} 28. dxe5 {[%emt 0:00:20]} Qxe5 {[%emt 0:00:25]} 0-1